[Event "Titled Tuesday Blitz March 07 Late 2023"]
[White "olga-belka"]
[Black "Pino Perez, Lazaro"]
[BlackFideId "3517055"]
[WhiteElo "2236"]
[BlackElo "2170"]
[Result "0-1"]
[Round "07"]
[TimeControl "180+2"]
[Date "2023.03.07"]
[WhiteClock "0:00:19"]
[BlackClock "0:01:15"]

1. e4 {[%clk 0:02:59]}  c5 {[%clk 0:02:58]} 2. Nf3 {[%clk 0:02:58]}  g6 {[%clk 0:02:59]} 3. c4 {[%clk 0:02:54]}  Nc6 {[%clk 0:02:58]} 4. d4 {[%clk 0:02:53]}  cxd4 {[%clk 0:02:59]} 5. Nxd4 {[%clk 0:02:53]}  Nf6 {[%clk 0:03:00]} 6. Nc3 {[%clk 0:02:52]}  d6 {[%clk 0:03:01]} 7. f3 {[%clk 0:02:46]}  Nxd4 {[%clk 0:03:01]} 8. Qxd4 {[%clk 0:02:46]}  Bg7 {[%clk 0:03:01]} 9. Be3 {[%clk 0:02:41]}  O-O {[%clk 0:03:02]} 10. Qd2 {[%clk 0:02:39]}  a5 {[%clk 0:03:02]} 11. Be2 {[%clk 0:02:38]}  a4 {[%clk 0:03:03]} 12. a3 {[%clk 0:02:36]}  Qa5 {[%clk 0:02:56]} 13. O-O {[%clk 0:02:33]}  Be6 {[%clk 0:02:56]} 14. Rfd1 {[%clk 0:02:27]}  Rfc8 {[%clk 0:02:55]} 15. Nd5 {[%clk 0:02:24]}  Qxd2 {[%clk 0:02:54]} 16. Rxd2 {[%clk 0:02:21]}  Nxd5 {[%clk 0:02:46]} 17. exd5 {[%clk 0:02:17]}  Bf5 {[%clk 0:02:42]} 18. g4 {[%clk 0:02:17]}  Bd7 {[%clk 0:02:41]} 19. Bd4 {[%clk 0:02:14]}  Bh6 {[%clk 0:02:34]} 20. Rdd1 {[%clk 0:02:14]}  Rab8 {[%clk 0:02:21]} 21. h4 {[%clk 0:02:10]}  Bf4 {[%clk 0:02:16]} 22. Kg2 {[%clk 0:02:01]}  b5 {[%clk 0:02:15]} 23. c5 {[%clk 0:01:40]}  dxc5 {[%clk 0:02:10]} 24. Bf2 {[%clk 0:01:36]}  b4 {[%clk 0:02:08]} 25. axb4 {[%clk 0:01:30]}  cxb4 {[%clk 0:02:09]} 26. Bg3 {[%clk 0:01:25]}  Bxg3 {[%clk 0:02:06]} 27. Kxg3 {[%clk 0:01:25]}  Rc2 {[%clk 0:02:07]} 28. Re1 {[%clk 0:01:17]}  Rxb2 {[%clk 0:02:05]} 29. Bc4 {[%clk 0:01:15]}  Kf8 {[%clk 0:02:00]} 30. h5 {[%clk 0:01:07]}  Rc2 {[%clk 0:01:58]} 31. Bd3 {[%clk 0:01:06]}  Rc3 {[%clk 0:01:58]} 32. Bb1 {[%clk 0:00:59]}  b3 {[%clk 0:01:49]} 33. hxg6 {[%clk 0:00:56]}  hxg6 {[%clk 0:01:50]} 34. Rh1 {[%clk 0:00:52]}  Kg7 {[%clk 0:01:50]} 35. Re1 {[%clk 0:00:48]}  e6 {[%clk 0:01:48]} 36. dxe6 {[%clk 0:00:44]}  fxe6 {[%clk 0:01:47]} 37. Rd1 {[%clk 0:00:41]}  Bc6 {[%clk 0:01:43]} 38. Rd3 {[%clk 0:00:33]}  b2 {[%clk 0:01:31]} 39. Ra3 {[%clk 0:00:29]}  Rxd3 {[%clk 0:01:23]} 40. Rxd3 {[%clk 0:00:28]}  Bd5 {[%clk 0:01:17]} 41. f4 {[%clk 0:00:25]}  Rb3 {[%clk 0:01:15]} 42. Rxb3 {[%clk 0:00:20]}  Bxb3 {[%clk 0:01:16]} 43. f5 {[%clk 0:00:20]}  exf5 {[%clk 0:01:14]} 44. gxf5 {[%clk 0:00:20]}  a3 {[%clk 0:01:15]} 45. fxg6 {[%clk 0:00:19]}  a2 {[%clk 0:01:15]} 0-1


[Site "https://www.chess.com"]

[Event "Titled Tuesday Blitz March 07 Late 2023"]
[White "Antonova, Nadezhda"]
[Black "Tyagi, Kushan"]
[WhiteFideId "14700182"]
[BlackFideId "2040069"]
[WhiteElo "1885"]
[BlackElo "2380"]
[Result "1/2-1/2"]
[Round "07"]
[TimeControl "180+2"]
[Date "2023.03.07"]
[WhiteClock "0:00:48"]
[BlackClock "0:00:24"]

1. Nf3 {[%clk 0:02:59]}  c5 {[%clk 0:02:59]} 2. b3 {[%clk 0:02:58]}  d5 {[%clk 0:02:52]} 3. e3 {[%clk 0:02:58]}  Nf6 {[%clk 0:02:51]} 4. Bb2 {[%clk 0:02:58]}  a6 {[%clk 0:02:51]} 5. c4 {[%clk 0:02:52]}  Nc6 {[%clk 0:02:42]} 6. cxd5 {[%clk 0:02:50]}  Nxd5 {[%clk 0:02:41]} 7. Be2 {[%clk 0:02:50]}  Bf5 {[%clk 0:02:33]} 8. O-O {[%clk 0:02:40]}  e6 {[%clk 0:02:32]} 9. d4 {[%clk 0:02:39]}  Nf6 {[%clk 0:02:27]} 10. Nbd2 {[%clk 0:02:22]}  cxd4 {[%clk 0:02:20]} 11. Nxd4 {[%clk 0:02:22]}  Nxd4 {[%clk 0:02:18]} 12. Bxd4 {[%clk 0:02:22]}  Bd6 {[%clk 0:02:14]} 13. Nc4 {[%clk 0:02:15]}  Bc7 {[%clk 0:02:11]} 14. Bc5 {[%clk 0:02:09]}  Ne4 {[%clk 0:01:58]} 15. Ba3 {[%clk 0:01:57]}  b5 {[%clk 0:01:58]} 16. Nb2 {[%clk 0:01:49]}  Qxd1 {[%clk 0:01:18]} 17. Raxd1 {[%clk 0:01:36]}  Rb8 {[%clk 0:01:12]} 18. Nd3 {[%clk 0:01:33]}  Nc3 {[%clk 0:01:01]} 19. Bf3 {[%clk 0:01:20]}  Nxd1 {[%clk 0:00:59]} 20. Bc6+ {[%clk 0:01:18]}  Kd8 {[%clk 0:00:52]} 21. Rxd1 {[%clk 0:01:18]}  Bxd3 {[%clk 0:00:38]} 22. Rxd3+ {[%clk 0:01:18]}  Kc8 {[%clk 0:00:38]} 23. Be7 {[%clk 0:01:11]}  Rb6 {[%clk 0:00:33]} 24. Rc3 {[%clk 0:00:57]}  Kb8 {[%clk 0:00:28]} 25. g3 {[%clk 0:00:55]}  Rc8 {[%clk 0:00:26]} 26. Bd7 {[%clk 0:00:53]}  Rh8 {[%clk 0:00:25]} 27. Bc6 {[%clk 0:00:48]}  Rc8 {[%clk 0:00:24]} 28. Bd7 {[%clk 0:00:48]}  Rh8 {[%clk 0:00:24]} 29. Bc6 {[%clk 0:00:48]} 1/2-1/2


[Site "https://www.chess.com"]

[Event "Titled Tuesday Blitz March 07 Late 2023"]
[White "sissahungrychess"]
[Black "tandercat"]
[WhiteElo "2369"]
[BlackElo "1921"]
[Result "1-0"]
[Round "07"]
[TimeControl "180+2"]
[Date "2023.03.07"]
[WhiteClock "0:00:23"]
[BlackClock "0:00:03"]

1. c4 {[%clk 0:03:00]}  c5 {[%clk 0:02:59]} 2. g3 {[%clk 0:03:00]}  g6 {[%clk 0:02:58]} 3. Bg2 {[%clk 0:03:01]}  Bg7 {[%clk 0:02:58]} 4. Nf3 {[%clk 0:03:02]}  Nc6 {[%clk 0:02:58]} 5. O-O {[%clk 0:03:02]}  d6 {[%clk 0:02:54]} 6. Nc3 {[%clk 0:03:02]}  e5 {[%clk 0:02:53]} 7. Ne1 {[%clk 0:03:01]}  Be6 {[%clk 0:02:52]} 8. d3 {[%clk 0:03:00]}  Nge7 {[%clk 0:02:50]} 9. Nc2 {[%clk 0:03:01]}  d5 {[%clk 0:02:44]} 10. cxd5 {[%clk 0:03:00]}  Nxd5 {[%clk 0:02:44]} 11. Ne3 {[%clk 0:02:57]}  Nde7 {[%clk 0:02:43]} 12. Ne4 {[%clk 0:02:53]}  b6 {[%clk 0:02:39]} 13. Ng5 {[%clk 0:02:44]}  Bd7 {[%clk 0:02:29]} 14. Nd5 {[%clk 0:02:38]}  h6 {[%clk 0:02:16]} 15. Nxe7 {[%clk 0:02:38]}  Qxe7 {[%clk 0:02:13]} 16. Ne4 {[%clk 0:02:35]}  Rc8 {[%clk 0:02:07]} 17. Nc3 {[%clk 0:02:32]}  Be6 {[%clk 0:02:00]} 18. Qa4 {[%clk 0:02:25]}  Qc7 {[%clk 0:01:43]} 19. Be3 {[%clk 0:01:27]}  O-O {[%clk 0:01:42]} 20. Rfc1 {[%clk 0:01:25]}  Nd4 {[%clk 0:01:17]} 21. Qd1 {[%clk 0:01:22]}  Qd7 {[%clk 0:00:59]} 22. Qd2 {[%clk 0:01:12]}  Kh7 {[%clk 0:00:58]} 23. Rab1 {[%clk 0:01:05]}  Rfd8 {[%clk 0:00:55]} 24. b4 {[%clk 0:01:04]}  cxb4 {[%clk 0:00:41]} 25. Rxb4 {[%clk 0:01:05]}  Nf5 {[%clk 0:00:37]} 26. Rbb1 {[%clk 0:00:52]}  Nxe3 {[%clk 0:00:25]} 27. Qxe3 {[%clk 0:00:53]}  e4 {[%clk 0:00:14]} 28. Nxe4 {[%clk 0:00:51]}  Bxa2 {[%clk 0:00:13]} 29. Rxc8 {[%clk 0:00:49]}  Rxc8 {[%clk 0:00:12]} 30. Rc1 {[%clk 0:00:49]}  Rxc1+ {[%clk 0:00:10]} 31. Qxc1 {[%clk 0:00:50]}  Be6 {[%clk 0:00:10]} 32. Qa3 {[%clk 0:00:50]}  a5 {[%clk 0:00:09]} 33. e3 {[%clk 0:00:35]}  a4 {[%clk 0:00:09]} 34. d4 {[%clk 0:00:33]}  Bb3 {[%clk 0:00:08]} 35. Nc3 {[%clk 0:00:26]}  b5 {[%clk 0:00:07]} 36. Qb4 {[%clk 0:00:23]}  Bc4 {[%clk 0:00:06]} 37. Bf1 {[%clk 0:00:22]}  Bxf1 {[%clk 0:00:03]} 38. Kxf1 {[%clk 0:00:23]} 1-0


[Site "https://www.chess.com"]

[Event "Titled Tuesday Blitz March 07 Late 2023"]
[White "Garcia Almaguer, Juan Manuel"]
[Black "Skaric, Djuro"]
[WhiteFideId "5110491"]
[BlackFideId "934569"]
[WhiteElo "2117"]
[BlackElo "2282"]
[Result "1-0"]
[Round "07"]
[TimeControl "180+2"]
[Date "2023.03.07"]
[WhiteClock "0:00:13"]
[BlackClock "0:00:16"]

1. e4 {[%clk 0:03:00]}  e6 {[%clk 0:02:59]} 2. d4 {[%clk 0:03:00]}  d5 {[%clk 0:02:59]} 3. e5 {[%clk 0:03:00]}  c5 {[%clk 0:02:59]} 4. c3 {[%clk 0:03:00]}  Nc6 {[%clk 0:02:59]} 5. Nf3 {[%clk 0:02:57]}  Bd7 {[%clk 0:02:59]} 6. Bd3 {[%clk 0:02:56]}  cxd4 {[%clk 0:02:59]} 7. cxd4 {[%clk 0:02:56]}  Qb6 {[%clk 0:02:59]} 8. O-O {[%clk 0:02:56]}  Nxd4 {[%clk 0:02:57]} 9. Re1 {[%clk 0:02:52]}  Nxf3+ {[%clk 0:02:53]} 10. Qxf3 {[%clk 0:02:51]}  Ne7 {[%clk 0:02:51]} 11. h4 {[%clk 0:02:49]}  h5 {[%clk 0:02:48]} 12. Nc3 {[%clk 0:02:44]}  g6 {[%clk 0:02:34]} 13. Bg5 {[%clk 0:02:44]}  Nf5 {[%clk 0:02:34]} 14. Bxf5 {[%clk 0:02:37]}  gxf5 {[%clk 0:02:32]} 15. Bf6 {[%clk 0:02:36]}  Rh6 {[%clk 0:02:27]} 16. Rad1 {[%clk 0:02:30]}  d4 {[%clk 0:02:27]} 17. Ne2 {[%clk 0:02:27]}  Bc6 {[%clk 0:02:27]} 18. Qf4 {[%clk 0:02:07]}  Rg6 {[%clk 0:02:26]} 19. Bg5 {[%clk 0:02:07]}  Be4 {[%clk 0:02:12]} 20. Nxd4 {[%clk 0:02:00]}  Bc5 {[%clk 0:02:09]} 21. Nb3 {[%clk 0:02:00]}  Be7 {[%clk 0:02:08]} 22. Kh2 {[%clk 0:01:46]}  Bxg5 {[%clk 0:02:06]} 23. hxg5 {[%clk 0:01:47]}  Ke7 {[%clk 0:02:06]} 24. f3 {[%clk 0:01:46]}  Bd5 {[%clk 0:02:05]} 25. Rxd5 {[%clk 0:01:40]}  exd5 {[%clk 0:02:04]} 26. Nd4 {[%clk 0:01:41]}  Rag8 {[%clk 0:01:30]} 27. Nxf5+ {[%clk 0:01:39]}  Kd8 {[%clk 0:01:30]} 28. Nd6 {[%clk 0:01:37]}  Kc7 {[%clk 0:01:13]} 29. Qxf7+ {[%clk 0:01:35]}  Kb8 {[%clk 0:01:13]} 30. Rc1 {[%clk 0:01:23]}  Rxg5 {[%clk 0:00:49]} 31. Rc2 {[%clk 0:01:00]}  d4 {[%clk 0:00:39]} 32. Qd7 {[%clk 0:00:54]}  a6 {[%clk 0:00:34]} 33. e6 {[%clk 0:00:23]}  Rd8 {[%clk 0:00:29]} 34. Rc8+ {[%clk 0:00:22]}  Rxc8 {[%clk 0:00:28]} 35. Qxc8+ {[%clk 0:00:20]}  Ka7 {[%clk 0:00:28]} 36. Qd7 {[%clk 0:00:19]}  Qxb2 {[%clk 0:00:27]} 37. Nc8+ {[%clk 0:00:16]}  Kb8 {[%clk 0:00:27]} 38. Qd6+ {[%clk 0:00:12]}  Kxc8 {[%clk 0:00:24]} 39. Qf8+ {[%clk 0:00:11]}  Kc7 {[%clk 0:00:24]} 40. Qe7+ {[%clk 0:00:11]}  Kb6 {[%clk 0:00:23]} 41. Qxg5 {[%clk 0:00:12]}  d3 {[%clk 0:00:20]} 42. Qe3+ {[%clk 0:00:12]}  Kc6 {[%clk 0:00:20]} 43. e7 {[%clk 0:00:13]}  d2 {[%clk 0:00:18]} 44. e8=Q+ {[%clk 0:00:13]}  Kd5 {[%clk 0:00:16]} 45. Q8e6# {[%clk 0:00:13]} 1-0


[Site "https://www.chess.com"]

[Event "Titled Tuesday Blitz March 07 Late 2023"]
[White "Sarkar, Justin"]
[Black "Floresvillar Gonzalez, Luis Migu"]
[WhiteFideId "2010011"]
[BlackFideId "5100542"]
[WhiteElo "2189"]
[BlackElo "2040"]
[Result "1-0"]
[Round "07"]
[TimeControl "180+2"]
[Date "2023.03.07"]
[WhiteClock "0:00:56"]
[BlackClock "0:00:56"]

1. e4 {[%clk 0:02:52]}  c6 {[%clk 0:03:00]} 2. d4 {[%clk 0:02:48]}  d5 {[%clk 0:03:00]} 3. e5 {[%clk 0:02:47]}  Bf5 {[%clk 0:02:59]} 4. c4 {[%clk 0:02:31]}  dxc4 {[%clk 0:02:49]} 5. Bxc4 {[%clk 0:02:29]}  e6 {[%clk 0:02:49]} 6. Nc3 {[%clk 0:02:26]}  Ne7 {[%clk 0:02:46]} 7. Nge2 {[%clk 0:02:22]}  Nd5 {[%clk 0:02:43]} 8. O-O {[%clk 0:02:18]}  Be7 {[%clk 0:02:41]} 9. Ng3 {[%clk 0:02:05]}  Bg6 {[%clk 0:02:40]} 10. f4 {[%clk 0:02:03]}  Nxc3 {[%clk 0:02:34]} 11. bxc3 {[%clk 0:02:02]}  Nd7 {[%clk 0:02:20]} 12. f5 {[%clk 0:01:58]}  Bxf5 {[%clk 0:02:16]} 13. Nxf5 {[%clk 0:01:53]}  exf5 {[%clk 0:02:16]} 14. Rxf5 {[%clk 0:01:40]}  O-O {[%clk 0:02:16]} 15. Qb3 {[%clk 0:01:27]}  b5 {[%clk 0:02:04]} 16. Bxf7+ {[%clk 0:01:22]}  Kh8 {[%clk 0:02:04]} 17. Be3 {[%clk 0:01:15]}  Nb6 {[%clk 0:01:57]} 18. Raf1 {[%clk 0:01:11]}  Rb8 {[%clk 0:01:21]} 19. Rh5 {[%clk 0:01:09]}  Nc4 {[%clk 0:01:17]} 20. Qc2 {[%clk 0:00:58]}  g6 {[%clk 0:00:58]} 21. Rxh7+ {[%clk 0:00:55]}  Kxh7 {[%clk 0:00:56]} 22. Qxg6+ {[%clk 0:00:56]}  Kh8 {[%clk 0:00:56]} 23. Qh6# {[%clk 0:00:56]} 1-0


[Site "https://www.chess.com"]

[Event "Titled Tuesday Blitz March 07 Late 2023"]
[White "Pasti, Aron"]
[Black "Bongo Akanga Ndjila, Barthelemy"]
[WhiteFideId "785857"]
[BlackFideId "10609431"]
[WhiteElo "2173"]
[BlackElo "1768"]
[Result "1-0"]
[Round "07"]
[TimeControl "180+2"]
[Date "2023.03.07"]
[WhiteClock "0:02:41"]
[BlackClock "0:02:01"]

1. e4 {[%clk 0:03:00]}  e6 {[%clk 0:02:56]} 2. d4 {[%clk 0:03:00]}  d5 {[%clk 0:02:57]} 3. exd5 {[%clk 0:03:00]}  exd5 {[%clk 0:02:55]} 4. Bd3 {[%clk 0:03:01]}  Nf6 {[%clk 0:02:53]} 5. c3 {[%clk 0:03:01]}  c6 {[%clk 0:02:52]} 6. Bf4 {[%clk 0:02:58]}  Be7 {[%clk 0:02:48]} 7. Nf3 {[%clk 0:02:57]}  O-O {[%clk 0:02:48]} 8. O-O {[%clk 0:02:58]}  Re8 {[%clk 0:02:42]} 9. Nbd2 {[%clk 0:02:57]}  Bg4 {[%clk 0:02:37]} 10. h3 {[%clk 0:02:57]}  Bh5 {[%clk 0:02:36]} 11. Re1 {[%clk 0:02:57]}  Nbd7 {[%clk 0:02:27]} 12. Qb3 {[%clk 0:02:48]}  Qb6 {[%clk 0:02:24]} 13. Qxb6 {[%clk 0:02:47]}  Nxb6 {[%clk 0:02:23]} 14. Ne5 {[%clk 0:02:46]}  Bd6 {[%clk 0:02:13]} 15. g4 {[%clk 0:02:43]}  Bg6 {[%clk 0:02:12]} 16. Nxg6 {[%clk 0:02:42]}  hxg6 {[%clk 0:02:01]} 17. Bxd6 {[%clk 0:02:41]} 1-0


[Site "https://www.chess.com"]

[Event "Titled Tuesday Blitz March 07 Late 2023"]
[White "Sabar, Ethmane Daouda"]
[Black "Vifleemskaia, Svetlana"]
[WhiteFideId "19600097"]
[BlackFideId "4129490"]
[WhiteElo "1950"]
[BlackElo "1930"]
[Result "0-1"]
[Round "07"]
[TimeControl "180+2"]
[Date "2023.03.07"]
[WhiteClock "0:00:32"]
[BlackClock "0:00:44"]

1. b3 {[%clk 0:03:00]}  Nf6 {[%clk 0:02:59]} 2. Bb2 {[%clk 0:03:01]}  d5 {[%clk 0:02:59]} 3. e3 {[%clk 0:03:01]}  Nc6 {[%clk 0:02:59]} 4. Bb5 {[%clk 0:03:00]}  Bd7 {[%clk 0:02:59]} 5. f4 {[%clk 0:03:00]}  a6 {[%clk 0:02:59]} 6. Bxc6 {[%clk 0:02:59]}  Bxc6 {[%clk 0:03:00]} 7. Nf3 {[%clk 0:03:00]}  e6 {[%clk 0:03:00]} 8. O-O {[%clk 0:03:00]}  b5 {[%clk 0:03:00]} 9. d3 {[%clk 0:03:00]}  Bb7 {[%clk 0:03:00]} 10. Nbd2 {[%clk 0:03:01]}  c5 {[%clk 0:02:59]} 11. Ne5 {[%clk 0:03:00]}  Be7 {[%clk 0:02:58]} 12. Ndf3 {[%clk 0:03:00]}  Qb6 {[%clk 0:02:58]} 13. Kh1 {[%clk 0:02:59]}  a5 {[%clk 0:02:57]} 14. Qe1 {[%clk 0:02:53]}  a4 {[%clk 0:02:53]} 15. Qg3 {[%clk 0:02:42]}  a3 {[%clk 0:02:03]} 16. Bc3 {[%clk 0:02:37]}  b4 {[%clk 0:02:03]} 17. Bd2 {[%clk 0:02:37]}  Nh5 {[%clk 0:01:54]} 18. Qg4 {[%clk 0:02:26]}  g6 {[%clk 0:01:53]} 19. Nxf7 {[%clk 0:02:19]}  Kxf7 {[%clk 0:01:50]} 20. Ng5+ {[%clk 0:02:20]}  Bxg5 {[%clk 0:01:48]} 21. fxg5+ {[%clk 0:02:20]}  Ke7 {[%clk 0:01:46]} 22. Rf6 {[%clk 0:02:02]}  Nxf6 {[%clk 0:01:40]} 23. gxf6+ {[%clk 0:02:03]}  Kxf6 {[%clk 0:01:40]} 24. Rf1+ {[%clk 0:01:52]}  Ke7 {[%clk 0:01:39]} 25. Qg5+ {[%clk 0:01:48]}  Kd6 {[%clk 0:01:36]} 26. Rf7 {[%clk 0:01:28]}  Qd8 {[%clk 0:01:22]} 27. Qf4+ {[%clk 0:01:13]}  Kc6 {[%clk 0:01:21]} 28. e4 {[%clk 0:01:10]}  Rf8 {[%clk 0:01:16]} 29. exd5+ {[%clk 0:01:10]}  exd5 {[%clk 0:01:09]} 30. c4 {[%clk 0:01:01]}  Rxf7 {[%clk 0:01:05]} 31. Qxf7 {[%clk 0:00:58]}  d4 {[%clk 0:00:55]} 32. Bf4 {[%clk 0:00:49]}  Kb6 {[%clk 0:00:52]} 33. Qe6+ {[%clk 0:00:43]}  Bc6 {[%clk 0:00:52]} 34. h3 {[%clk 0:00:38]}  Qd7 {[%clk 0:00:51]} 35. Qe5 {[%clk 0:00:37]}  Re8 {[%clk 0:00:50]} 36. Qg5 {[%clk 0:00:36]}  Qxh3+ {[%clk 0:00:49]} 37. Kg1 {[%clk 0:00:33]}  Qxg2+ {[%clk 0:00:43]} 38. Qxg2 {[%clk 0:00:32]}  Bxg2 {[%clk 0:00:43]} 39. Kxg2 {[%clk 0:00:32]}  Re2+ {[%clk 0:00:43]} 40. Kf3 {[%clk 0:00:32]}  Rxa2 {[%clk 0:00:44]} 0-1


[Site "https://www.chess.com"]

[Event "Titled Tuesday Blitz March 07 Late 2023"]
[White "Smith, Garrett L"]
[Black "Chemin, Justo Reinaldo"]
[WhiteFideId "2024829"]
[BlackFideId "2101580"]
[WhiteElo "2247"]
[BlackElo "1940"]
[Result "1-0"]
[Round "07"]
[TimeControl "180+2"]
[Date "2023.03.07"]
[WhiteClock "0:00:26"]
[BlackClock "0:00:34"]

1. e4 {[%clk 0:03:00]}  e5 {[%clk 0:02:59]} 2. Nf3 {[%clk 0:03:00]}  Nc6 {[%clk 0:03:00]} 3. Bc4 {[%clk 0:03:01]}  Bc5 {[%clk 0:02:59]} 4. b4 {[%clk 0:03:00]}  Bb6 {[%clk 0:02:58]} 5. c3 {[%clk 0:02:48]}  d6 {[%clk 0:02:57]} 6. O-O {[%clk 0:02:46]}  Nf6 {[%clk 0:02:57]} 7. d3 {[%clk 0:02:46]}  O-O {[%clk 0:02:55]} 8. a4 {[%clk 0:02:45]}  a5 {[%clk 0:02:55]} 9. b5 {[%clk 0:02:41]}  Ne7 {[%clk 0:02:55]} 10. Be3 {[%clk 0:02:20]}  Bxe3 {[%clk 0:02:47]} 11. fxe3 {[%clk 0:02:21]}  Ng6 {[%clk 0:02:46]} 12. Nbd2 {[%clk 0:02:18]}  Be6 {[%clk 0:02:43]} 13. Qe2 {[%clk 0:02:16]}  c6 {[%clk 0:02:35]} 14. Rab1 {[%clk 0:02:09]}  d5 {[%clk 0:02:26]} 15. exd5 {[%clk 0:02:09]}  cxd5 {[%clk 0:02:26]} 16. Ba2 {[%clk 0:02:10]}  Rc8 {[%clk 0:02:19]} 17. Rfc1 {[%clk 0:01:57]}  Qd6 {[%clk 0:02:17]} 18. b6 {[%clk 0:01:46]}  Rc6 {[%clk 0:02:11]} 19. c4 {[%clk 0:01:24]}  dxc4 {[%clk 0:01:58]} 20. Nxc4 {[%clk 0:01:25]}  Bxc4 {[%clk 0:01:58]} 21. Bxc4 {[%clk 0:01:26]}  Rxb6 {[%clk 0:01:55]} 22. h3 {[%clk 0:01:21]}  Rb4 {[%clk 0:01:54]} 23. Qc2 {[%clk 0:01:19]}  Qb6 {[%clk 0:01:51]} 24. Re1 {[%clk 0:01:17]}  Qc6 {[%clk 0:01:32]} 25. Rxb4 {[%clk 0:01:12]}  axb4 {[%clk 0:01:31]} 26. Qb3 {[%clk 0:01:10]}  Qd6 {[%clk 0:01:25]} 27. Ng5 {[%clk 0:01:07]}  Qe7 {[%clk 0:01:23]} 28. Rf1 {[%clk 0:01:05]}  h6 {[%clk 0:01:23]} 29. Ne4 {[%clk 0:01:00]}  Nxe4 {[%clk 0:01:22]} 30. dxe4 {[%clk 0:01:01]}  Nh8 {[%clk 0:01:12]} 31. Rb1 {[%clk 0:00:53]}  Qc5 {[%clk 0:01:10]} 32. Kf2 {[%clk 0:00:45]}  Kh7 {[%clk 0:01:08]} 33. Qxb4 {[%clk 0:00:44]}  Qxb4 {[%clk 0:01:05]} 34. Rxb4 {[%clk 0:00:45]}  f5 {[%clk 0:01:01]} 35. exf5 {[%clk 0:00:42]}  Rd8 {[%clk 0:00:49]} 36. Rxb7 {[%clk 0:00:37]}  Rd2+ {[%clk 0:00:48]} 37. Kf3 {[%clk 0:00:38]}  Rc2 {[%clk 0:00:35]} 38. Bd3 {[%clk 0:00:35]}  Rc3 {[%clk 0:00:36]} 39. f6+ {[%clk 0:00:26]}  Rxd3 {[%clk 0:00:34]} 40. Rxg7# {[%clk 0:00:26]} 1-0


[Site "https://www.chess.com"]

[Event "Titled Tuesday Blitz March 07 Late 2023"]
[White "Good, Daniel"]
[Black "Marcolino, Daniel Mattos"]
[WhiteFideId "1302388"]
[BlackFideId "2106841"]
[WhiteElo "2242"]
[BlackElo "2101"]
[Result "0-1"]
[Round "07"]
[TimeControl "180+2"]
[Date "2023.03.07"]
[WhiteClock "0:00:03"]
[BlackClock "0:00:05"]

1. Nf3 {[%clk 0:02:56]}  d5 {[%clk 0:02:58]} 2. g3 {[%clk 0:02:56]}  Nf6 {[%clk 0:02:58]} 3. Bg2 {[%clk 0:02:57]}  e6 {[%clk 0:02:58]} 4. O-O {[%clk 0:02:57]}  Be7 {[%clk 0:02:58]} 5. c4 {[%clk 0:02:58]}  O-O {[%clk 0:02:58]} 6. d4 {[%clk 0:02:51]}  dxc4 {[%clk 0:02:54]} 7. a4 {[%clk 0:02:23]}  Nc6 {[%clk 0:02:46]} 8. Nc3 {[%clk 0:02:17]}  Na5 {[%clk 0:02:42]} 9. e4 {[%clk 0:02:10]}  c5 {[%clk 0:02:27]} 10. d5 {[%clk 0:01:53]}  exd5 {[%clk 0:02:26]} 11. e5 {[%clk 0:01:49]}  Ng4 {[%clk 0:01:26]} 12. h3 {[%clk 0:01:45]}  Nb3 {[%clk 0:01:24]} 13. Rb1 {[%clk 0:01:37]}  Bf5 {[%clk 0:01:18]} 14. hxg4 {[%clk 0:01:28]}  Bxb1 {[%clk 0:01:18]} 15. Qxd5 {[%clk 0:01:17]}  Nxc1 {[%clk 0:01:08]} 16. Rxc1 {[%clk 0:01:04]}  Bd3 {[%clk 0:01:02]} 17. Nd2 {[%clk 0:01:00]}  Qxd5 {[%clk 0:00:56]} 18. Nxd5 {[%clk 0:01:01]}  Rfe8 {[%clk 0:00:54]} 19. Nxc4 {[%clk 0:01:00]}  Rad8 {[%clk 0:00:49]} 20. Na5 {[%clk 0:00:32]}  Bf8 {[%clk 0:00:18]} 21. Nxb7 {[%clk 0:00:24]}  Rb8 {[%clk 0:00:18]} 22. Nxc5 {[%clk 0:00:22]}  Bxc5 {[%clk 0:00:17]} 23. Rxc5 {[%clk 0:00:22]}  Rxb2 {[%clk 0:00:16]} 24. f4 {[%clk 0:00:17]}  h6 {[%clk 0:00:16]} 25. Rc7 {[%clk 0:00:12]}  a6 {[%clk 0:00:12]} 26. Ne7+ {[%clk 0:00:12]}  Kh8 {[%clk 0:00:12]} 27. Bd5 {[%clk 0:00:12]}  Rf8 {[%clk 0:00:09]} 28. Nc6 {[%clk 0:00:08]}  Rc2 {[%clk 0:00:08]} 29. Bxf7 {[%clk 0:00:05]}  Be4 {[%clk 0:00:06]} 30. Be8 {[%clk 0:00:03]}  Rxe8 {[%clk 0:00:05]} 0-1


[Site "https://www.chess.com"]

[Event "Titled Tuesday Blitz March 07 Late 2023"]
[White "Rose, Felix"]
[Black "Dorato, Adriano"]
[WhiteFideId "5105722"]
[BlackFideId "2802894"]
[WhiteElo "2039"]
[BlackElo "1709"]
[Result "1-0"]
[Round "07"]
[TimeControl "180+2"]
[Date "2023.03.07"]
[WhiteClock "0:01:42"]
[BlackClock "0:00:10"]

1. d4 {[%clk 0:03:00]}  d5 {[%clk 0:02:55]} 2. c4 {[%clk 0:03:00]}  e6 {[%clk 0:02:53]} 3. Nc3 {[%clk 0:03:00]}  c5 {[%clk 0:02:52]} 4. cxd5 {[%clk 0:02:56]}  cxd4 {[%clk 0:02:50]} 5. Qa4+ {[%clk 0:02:56]}  Bd7 {[%clk 0:02:42]} 6. Qxd4 {[%clk 0:02:56]}  Nf6 {[%clk 0:02:42]} 7. dxe6 {[%clk 0:02:50]}  Bxe6 {[%clk 0:02:36]} 8. Qxd8+ {[%clk 0:02:49]}  Kxd8 {[%clk 0:02:37]} 9. e4 {[%clk 0:02:41]}  Nc6 {[%clk 0:02:35]} 10. f3 {[%clk 0:02:38]}  Bb4 {[%clk 0:02:32]} 11. Bd2 {[%clk 0:02:37]}  Kc7 {[%clk 0:02:15]} 12. Nge2 {[%clk 0:02:37]}  Rad8 {[%clk 0:02:13]} 13. O-O-O {[%clk 0:02:36]}  Rd7 {[%clk 0:01:51]} 14. Bf4+ {[%clk 0:02:34]}  Kc8 {[%clk 0:01:32]} 15. Rxd7 {[%clk 0:02:33]}  Nxd7 {[%clk 0:01:28]} 16. a3 {[%clk 0:02:33]}  Ba5 {[%clk 0:01:27]} 17. b4 {[%clk 0:02:32]}  Bb6 {[%clk 0:01:26]} 18. Na4 {[%clk 0:02:24]}  Bd8 {[%clk 0:01:20]} 19. Nec3 {[%clk 0:02:23]}  a6 {[%clk 0:01:11]} 20. Kc2 {[%clk 0:02:05]}  Bf6 {[%clk 0:01:04]} 21. b5 {[%clk 0:01:57]}  Nd4+ {[%clk 0:00:55]} 22. Kb1 {[%clk 0:01:57]}  g5 {[%clk 0:00:41]} 23. Be3 {[%clk 0:01:56]}  axb5 {[%clk 0:00:35]} 24. Nxb5 {[%clk 0:01:50]}  Nxb5 {[%clk 0:00:17]} 25. Bxb5 {[%clk 0:01:51]}  Nb8 {[%clk 0:00:14]} 26. Rc1+ {[%clk 0:01:50]}  Kd8 {[%clk 0:00:14]} 27. Bb6+ {[%clk 0:01:48]}  Ke7 {[%clk 0:00:14]} 28. Bc5+ {[%clk 0:01:48]}  Kd8 {[%clk 0:00:13]} 29. Rd1+ {[%clk 0:01:43]}  Nd7 {[%clk 0:00:13]} 30. Nb6 {[%clk 0:01:43]}  Kc7 {[%clk 0:00:11]} 31. Nxd7 {[%clk 0:01:43]}  Rd8 {[%clk 0:00:11]} 32. Bd6+ {[%clk 0:01:42]}  Kc8 {[%clk 0:00:10]} 33. Nxf6 {[%clk 0:01:42]} 1-0


[Site "https://www.chess.com"]